bitfinex-derivatives/quotes_ETHF0:USTF0_20250411
["timestamp","ask_amount","ask_price","bid_price","bid_amount"]
[1744387431188,1.28136,1561.8,1561.7,1.28134]
[1744387431386,1.62870785,1561.9,1561.8,1.28131]
[1744387431684,2.90993785,1561.9,1561.8,1.28131]
[1744387432191,1.62870785,1561.9,1561.8,1.28131]
[1744387432583,1.62870785,1561.9,1561.8,2.97571]
[1744387432889,2.90993785,1561.9,1561.8,1.28131]
[1744387434089,1.62790785,1561.9,1561.7,5.106]
[1744387434291,1.28129,1561.9,1561.8,1.28131]
[1744387434987,1.28131,1561.8,1561.7,6.38732]
[1744387435186,1.28139,1561.7,1561.6,4.49879785]
[1744387435993,1.28138,1561.8,1561.7,1.28134]
[1744387436287,1.28139,1561.7,1561.6,4.49882785]
[1744387436685,1.28139,1561.7,1561.6,1.29107785]
[1744387437188,1.28139,1561.7,1561.6,0.00959785]
[1744387437579,2.99169,1561.7,1561.6,0.00959785]
[1744387438491,2.99169,1561.7,1561.6,1.29107785]
[1744387439986,1.7103,1561.7,1561.6,1.29107785]
[1744387440186,2.99169,1561.7,1561.6,1.29107785]
[1744387440693,1.7103,1561.7,1561.6,1.29107785]
[1744387441086,3.3914,1561.7,1561.6,1.29107785]
[1744387441393,1.6811,1561.7,1561.6,1.29107785]
[1744387441587,1.29079785,1562.0,1561.9,1.28123]
[1744387441891,0.00959785,1562.0,1561.7,6.41128]
[1744387442098,1.2813,1561.9,1561.8,1.28125]
[1744387442599,8.81042724,1562.0,1561.9,1.28123]
[1744387442787,10.54152724,1562.0,1561.9,1.28123]
[1744387442989,1.2813,1561.9,1561.8,1.28124]
[1744387443295,3.01233,1561.9,1561.8,1.28124]
[1744387443493,1.7311,1561.9,1561.8,1.28124]
[1744387443688,1.7311,1561.9,1561.8,2.88284]
[1744387444489,7.52921724,1562.0,1561.9,1.28123]
[1744387444693,7.52921724,1562.0,1561.9,2.88283]
[1744387444894,7.52921724,1562.0,1561.9,6.95673]
[1744387445193,0.00959785,1562.0,1561.9,6.95673]
[1744387445595,1.61199785,1562.0,1561.9,3.74893]
[1744387446193,0.00959785,1562.0,1561.9,6.95673]
[1744387446399,9.12201939,1562.3,1562.2,1.28098]
[1744387446695,9.12201939,1562.3,1562.2,4.48878]
[1744387446893,7.51961939,1562.3,1562.2,4.48878]
[1744387447198,5.94889939,1562.3,1562.2,12.03868]
[1744387447787,5.94889939,1562.3,1562.2,7.03868]
[1744387447984,7.61289939,1562.3,1562.2,3.83088]
[1744387448190,8.89379939,1562.3,1562.2,1.28098]
[1744387448391,2.9449,1562.3,1562.2,1.28098]
[1744387448592,1.664,1562.3,1562.2,1.28098]
[1744387449389,1.664,1562.3,1562.2,4.48878]
[1744387449589,1.664,1562.3,1562.2,6.21978]
[1744387449797,0.85349785,1562.4,1562.3,1.2809]
[1744387449992,2.13431785,1562.4,1562.3,3.0119]
[1744387450197,3.79831785,1562.4,1562.3,1.2809]
[1744387450385,2.51749785,1562.4,1562.3,1.2809]
[1744387450586,1.67359785,1562.4,1562.3,1.2809]
[1744387451197,1.67359785,1562.4,1562.3,3.0043]
[1744387452203,0.00959785,1562.4,1562.3,3.0043]
[1744387452397,0.00959785,1562.4,1562.3,3.8979]
[1744387453295,1.69369785,1562.4,1562.3,3.8979]
[1744387453593,0.00959785,1562.4,1562.3,3.8979]
[1744387454091,1.2809,1562.3,1562.2,1.28096]
[1744387454600,3.90497785,1562.4,1562.3,1.2809]
[1744387454800,2.17347785,1562.4,1562.3,1.2809]
[1744387455002,0.89259785,1562.4,1562.3,1.2809]
[1744387455207,2.17341785,1562.4,1562.3,1.2809]
[1744387455704,0.89259785,1562.4,1562.3,1.2809]
[1744387456002,0.00959785,1562.4,1562.3,1.2809]
[1744387456201,1.29041785,1562.4,1562.3,1.2809]
[1744387456391,1.2809,1562.3,1562.2,6.16383]
[1744387456592,1.2809,1562.3,1562.2,1.28093]
[1744387457500,1.28098,1562.2,1562.1,1.28103]
[1744387457697,1.28107,1562.1,1562.0,6.3801]
[1744387457897,1.28115,1562.0,1561.9,4.66786]
[1744387458097,8.20086,1562.3,1561.9,3.3867]
[1744387458296,3.07151,1562.3,1562.2,1.28098]
[1744387458492,0.00959785,1562.4,1562.3,1.2809]
[1744387458800,0.00959785,1562.4,1562.3,3.7531]
[1744387458997,0.00959785,1562.4,1562.3,9.6582]
[1744387459604,10.02294894,1563.0,1562.3,15.25793391]
[1744387459905,3.07089,1563.1,1563.0,1.28033]
[1744387460301,3.07085,1563.1,1563.0,1.28033]
[1744387460502,1.7906,1563.1,1563.0,1.28033]
[1744387460703,3.07085,1563.1,1563.0,1.28033]
[1744387461501,1.7906,1563.1,1563.0,1.28033]
[1744387461806,3.07085,1563.1,1563.0,1.28033]
[1744387462310,3.0709,1563.1,1563.0,1.28033]
[1744387464112,1.7906,1563.1,1563.0,1.28033]
[1744387464503,1.28025,1563.1,1563.0,1.28033]
[1744387465003,0.00959785,1563.2,1562.9,1.75769785]
[1744387465208,1.28982785,1563.2,1563.1,1.28025]
[1744387465708,1.28029,1563.1,1563.0,1.28026]
[1744387466206,0.00959785,1563.2,1563.1,1.28025]
[1744387467297,0.00959785,1563.2,1563.1,2.96645]
[1744387470000,1.28975785,1563.2,1563.1,2.96645]
[1744387470199,0.00959785,1563.2,1563.1,2.96645]
[1744387470604,0.00959785,1563.2,1563.1,1.28025]
[1744387471605,0.00959785,1563.2,1563.1,2.89915]
[1744387474009,1.27981,1563.7,1563.6,1.27984]
[1744387474212,4.62661,1563.7,1563.6,1.27984]
[1744387474414,1.27987,1563.6,1563.5,1.27985]
[1744387474610,2.91837,1563.6,1563.5,1.27985]
[1744387474810,1.27998,1563.5,1563.4,1.27994]
[1744387475115,2.91848,1563.5,1563.4,1.27994]
[1744387475508,1.6385,1563.5,1563.4,1.27994]
[1744387475813,0.00959785,1563.6,1563.5,1.27992]
[1744387476813,0.00959785,1563.6,1563.5,10.31972]
[1744387477818,0.00959785,1563.6,1563.5,5.31972]
[1744387481321,1.27996,1563.5,1563.4,1.27993]
[1744387481518,3.84556,1563.5,1563.4,1.27993]
[1744387481718,2.5656,1563.5,1563.4,4.48773]
[1744387481916,0.00959785,1563.6,1563.5,1.27992]
[1744387482117,0.00959785,1563.6,1563.5,2.96642]
[1744387482522,1.66579785,1563.6,1563.5,2.96642]
[1744387483523,2.94563785,1563.6,1563.5,1.27992]
[1744387483825,3.85503785,1563.6,1563.5,1.27992]
[1744387484120,8.85503785,1563.6,1563.5,1.27992]
[1744387484711,3.85503785,1563.6,1563.5,1.27992]
[1744387485538,7.57519785,1563.6,1563.2,3.2078]
[1744387485722,1.7429,1563.5,1563.4,1.27998]
[1744387486021,3.02282,1563.5,1563.4,1.27998]
[1744387486220,3.0229,1563.5,1563.4,1.28]
[1744387486724,3.0229,1563.5,1563.3,1.28003]
[1744387486725,1.28008,1563.4,1563.3,1.28003]
[1744387487022,3.0229,1563.4,1563.3,1.28003]
[1744387487215,1.7429,1563.4,1563.3,1.28003]
[1744387487622,1.7429,1563.4,1563.3,3.01563]
[1744387487817,3.0229,1563.4,1563.3,3.01563]
[1744387488018,3.0229,1563.4,1563.3,1.28003]
[1744387488223,1.28008,1563.3,1563.2,1.28008]
[1744387488425,1.28008,1563.3,1563.1,4.93617]
[1744387488426,1.28022,1563.2,1563.1,1.28019]
[1744387488822,3.01502,1563.2,1563.1,1.28019]
[1744387489017,1.7348,1563.2,1563.1,1.28019]
[1744387489418,0.88,1563.3,1563.2,1.28016]
[1744387489612,2.6148,1563.3,1563.2,4.48796]
[1744387490917,2.6148,1563.3,1563.2,6.11916]
[1744387491427,1.7348,1563.3,1563.2,6.11916]
[1744387491730,2.98079,1563.5,1563.4,1.28]
[1744387492026,0.00959785,1563.6,1563.5,1.27992]
[1744387493224,1.67159785,1563.6,1563.5,2.91112]
[1744387493421,1.67159785,1563.6,1563.5,1.27992]
[1744387494524,2.95143785,1563.6,1563.5,1.27992]
[1744387496028,1.67159785,1563.6,1563.5,1.27992]
[1744387498527,2.95143785,1563.6,1563.5,1.27992]
[1744387498916,1.67159785,1563.6,1563.5,1.27992]
[1744387499321,1.67159785,1563.6,1563.5,3.03502]
[1744387500330,0.00959785,1563.6,1563.5,3.03502]
[1744387502631,7.85e-06,1563.6,1563.5,8.11402]
[1744387502830,7.85e-06,1563.6,1563.5,13.11402]
[1744387505726,7.85e-06,1563.6,1563.5,8.11402]
[1744387507527,7.85e-06,1563.6,1563.5,13.11402]
[1744387507724,7.85e-06,1563.6,1563.5,8.11402]
[1744387509238,7.85e-06,1563.6,1563.5,1.27992]
[1744387509438,2.91094785,1563.6,1563.5,1.27992]
[1744387509639,3.70894785,1563.6,1563.5,1.27992]
[1744387510139,2.42910785,1563.6,1563.5,1.27992]
[1744387511138,1.63110785,1563.6,1563.5,1.27992]
[1744387511333,7.85e-06,1563.6,1563.5,2.95582]
[1744387511935,7.85e-06,1563.6,1563.5,7.95582]
[1744387512337,4.99608882,1564.1,1564.0,1.27951]
[1744387512532,5.39675782,1564.2,1564.1,1.91943]
[1744387512737,7.60837763,1564.3,1564.2,1.27935]
[1744387512926,7.60837763,1564.3,1564.2,5.60258185]
[1744387512927,5.16773763,1564.3,1564.2,5.60258185]
[1744387513133,5.16773763,1564.3,1564.2,9.96258185]
[1744387513335,2.65756763,1564.3,1564.2,50.76258185]
[1744387513538,2.65756763,1564.3,1564.2,45.28715]
[1744387514138,0.00633045,1564.4,1564.3,1.27926]
[1744387514333,0.00633045,1564.4,1564.3,6.35826]
[1744387515139,0.00633045,1564.4,1564.3,11.35826]
[1744387515542,0.00633045,1564.4,1564.3,6.35826]
[1744387515838,0.00633045,1564.4,1564.3,47.15826]
[1744387516137,0.00633045,1564.4,1564.3,48.86716]
[1744387517940,4.5e-07,1564.4,1564.3,53.86716]
[1744387519136,4.5e-07,1564.4,1564.3,48.86716]
[1744387519936,4.5e-07,1564.4,1564.3,47.15826]
[1744387520340,4.5e-07,1564.4,1564.3,48.83286]
[1744387521037,4.5e-07,1564.4,1564.3,47.15826]
[1744387521244,1.27918045,1564.4,1564.3,42.07926]
[1744387521437,4.5e-07,1564.4,1564.3,42.07926]
[1744387521834,1.75510045,1564.4,1564.3,42.07926]
[1744387522035,4.5e-07,1564.4,1564.3,43.69826]
[1744387523244,4.5e-07,1564.4,1564.3,48.69826]
[1744387524138,4.5e-07,1564.4,1564.3,43.69826]
[1744387526148,4.5e-07,1564.4,1564.3,42.419]
[1744387529649,4.5e-07,1564.4,1564.3,47.419]
[1744387530653,4.5e-07,1564.4,1564.3,42.419]
[1744387531451,3.2078,1565.5,1564.4,3.20779955]
[1744387531638,27.51601753,1565.6,1564.9,3.2078]
[1744387531639,1.6422,1565.2,1564.9,3.2078]
[1744387531843,1.6422,1565.2,1565.1,3.2078]
[1744387532049,1.6422,1565.2,1565.1,44.0078]
[1744387532545,6.6422,1565.2,1565.1,44.0078]
[1744387533455,1.6422,1565.2,1565.1,44.0078]
[1744387536858,1.6422,1565.2,1565.1,3.2078]
[1744387538163,1.7657,1565.4,1565.1,6.5431]
[1744387538357,1.6961,1565.3,1565.2,6.6982]
[1744387538558,1.6961,1565.3,1565.2,9.906]
[1744387538971,5.066,1566.0,1565.2,9.906]
[1744387539268,3.4258,1565.9,1565.5,3.2078]
[1744387539471,1.6614,1565.8,1565.6,40.8]
[1744387540064,6.6614,1565.8,1565.6,40.8]
[1744387540267,6.6614,1565.8,1565.5,3.2078]
[1744387540467,1.6614,1565.7,1565.5,3.2078]
[1744387540766,1.6614,1565.7,1565.5,44.0078]
[1744387541064,0.8516,1565.6,1565.5,44.0078]
[1744387542064,0.8516,1565.6,1565.5,40.8]
[1744387542266,0.8516,1565.6,1565.5,44.0078]
[1744387543267,1.6614,1565.7,1565.5,44.0078]
[1744387543661,1.6614,1565.7,1565.6,6.7399]
[1744387544366,1.6614,1565.7,1565.6,5.065]
[1744387544757,0.8879,1565.9,1565.6,5.065]
[1744387544958,1.6432,1565.8,1565.7,3.2078]
[1744387546765,2.5373,1565.8,1565.7,3.2078]
[1744387549366,7.5373,1565.8,1565.7,3.2078]
[1744387550068,2.5373,1565.8,1565.7,3.2078]
[1744387553863,1.6432,1565.8,1565.7,4.9403]
[1744387555262,0.8993,1566.2,1565.7,4.9403]
[1744387555567,1.5831,1566.1,1565.9,3.2078]
[1744387557768,1.5831,1566.1,1565.8,0.00959785]
[1744387558969,1.5831,1566.1,1565.9,3.2078]
[1744387560068,1.5831,1566.1,1565.8,0.00959785]
[1744387560370,1.5831,1566.1,1565.9,3.2078]
[1744387560662,1.5831,1566.1,1565.9,8.2708]
[1744387560870,0.8993,1566.2,1566.0,2.5574]
[1744387561062,1.7356,1566.1,1566.0,5.7652]
[1744387561668,0.8993,1566.2,1566.0,5.7652]
[1744387561869,1.7356,1566.3,1566.1,2.5482]
[1744387562070,1.7356,1566.3,1566.2,3.2078]
[1744387563370,1.7356,1566.3,1566.2,4.8713]
[1744387563565,1.7356,1566.3,1566.2,3.2078]
[1744387563866,2.5733,1566.3,1566.2,3.2078]
[1744387564275,1.7356,1566.3,1566.2,3.2078]
[1744387564769,2.5733,1566.3,1566.2,3.2078]
[1744387565666,2.5733,1566.3,1566.2,4.8246]
[1744387566071,2.5733,1566.3,1566.1,0.8847]
[1744387566274,1.661,1566.2,1565.9,8.2708]
[1744387566676,1.661,1566.2,1565.9,9.983]
[1744387566968,6.661,1566.2,1565.9,3.2078]
[1744387567365,1.5913,1566.1,1565.8,0.00959785]
[1744387567562,0.8859,1566.0,1565.8,0.00959785]
[1744387567767,1.5913,1565.9,1565.8,0.00959785]
[1744387568171,6.5913,1565.9,1565.8,0.00959785]
[1744387568766,6.5913,1565.9,1565.7,3.2078]
[1744387569082,5.0,1565.9,1565.7,3.2078]
[1744387569375,6.8181,1566.0,1565.7,3.2078]
[1744387569766,6.82769785,1566.0,1565.7,3.21739785]
[1744387569963,1.77269785,1566.0,1565.7,3.21739785]
[1744387571275,5.055,1565.9,1565.7,3.21739785]
[1744387571576,8.2628,1565.9,1565.7,0.00959785]
[1744387571776,1.77269785,1566.0,1565.7,3.21739785]
[1744387572077,1.7056,1565.9,1565.7,3.21739785]
[1744387573177,6.7056,1565.9,1565.7,0.00959785]
[1744387573379,1.7056,1565.9,1565.7,0.00959785]
[1744387573682,1.6533,1565.8,1565.7,3.21739785]
[1744387574380,6.6533,1565.8,1565.7,3.21739785]
[1744387574679,6.6533,1565.8,1565.7,0.00959785]
[1744387575185,1.6533,1565.8,1565.7,3.21739785]
[1744387576282,1.77269785,1566.0,1565.7,8.21739785]
[1744387576483,1.6846,1565.9,1565.7,3.21739785]
[1744387576979,1.77269785,1566.0,1565.7,3.21739785]
[1744387576980,0.00959785,1566.0,1565.7,3.21739785]
[1744387577183,0.00959785,1566.0,1565.9,3.2078]
[1744387577383,1.69419785,1566.0,1565.9,3.2078]
[1744387577982,2.59329785,1566.0,1565.9,3.2078]
[1744387578181,1.69419785,1566.0,1565.9,3.2078]
[1744387578985,1.69419785,1566.0,1565.8,1.6839]
[1744387579282,1.69419785,1566.0,1565.9,3.2078]
[1744387580783,1.69419785,1566.0,1565.8,1.6839]
[1744387580985,1.69419785,1566.0,1565.9,3.2078]
[1744387581684,2.53469785,1566.0,1565.9,3.2078]
[1744387586587,2.53469785,1566.0,1565.7,4.84379785]
[1744387586790,1.618,1565.9,1565.7,4.84379785]
[1744387588377,1.618,1565.9,1565.7,3.21739785]
[1744387589885,1.618,1565.9,1565.8,1.6662]
[1744387590694,1.618,1565.9,1565.7,3.21739785]
[1744387592892,1.618,1565.9,1565.7,0.00959785]
[1744387593093,1.618,1565.9,1565.7,3.21739785]
[1744387594094,6.667,1565.9,1565.7,3.21739785]
[1744387594496,1.5891,1565.8,1565.7,3.21739785]
[1744387594688,1.5891,1565.8,1565.7,0.00959785]
[1744387595492,6.5891,1565.8,1565.7,0.00959785]
[1744387595695,6.5891,1565.8,1565.3,9.90866671]
[1744387595993,3.2078,1565.6,1565.3,9.90866671]
[1744387596294,6.6381,1565.5,1565.3,9.90866671]
[1744387596494,1.5891,1565.4,1565.3,9.90866671]
[1744387596687,2.4711,1565.4,1565.3,9.90866671]
[1744387597892,2.4711,1565.4,1565.2,0.00959785]
[1744387598183,2.6328,1565.3,1565.2,0.00959785]
[1744387599199,1.7202,1565.3,1565.2,0.00959785]
[1744387599389,1.7202,1565.3,1565.2,1.76629785]
[1744387600591,1.7202,1565.3,1565.2,2.59889785]
[1744387601897,1.7202,1565.3,1565.2,0.00959785]
[1744387602396,1.7202,1565.3,1565.2,1.62599785]
[1744387602595,1.7202,1565.3,1565.2,2.45859785]
[1744387602796,1.7202,1565.3,1565.2,0.00959785]
[1744387603291,2.99865,1565.3,1565.2,0.00959785]
[1744387603489,7.99865,1565.3,1565.2,7.85e-06]
[1744387604300,2.99865,1565.3,1565.2,7.85e-06]
[1744387605393,2.99865,1565.3,1565.2,1.69730785]
[1744387605799,1.27845,1565.3,1565.2,4.90510785]
[1744387606000,1.27845,1565.3,1565.2,1.69730785]
[1744387606397,1.27845,1565.3,1565.2,7.85e-06]
[1744387607299,2.89045,1565.3,1565.2,7.85e-06]
[1744387609902,3.79985,1565.3,1565.2,7.85e-06]
[1744387611606,2.89045,1565.3,1565.2,7.85e-06]
[1744387611801,2.89045,1565.3,1565.2,1.58660785]
[1744387613004,2.89045,1565.3,1565.2,7.85e-06]
[1744387615096,16.6572674,1565.6,1565.3,1.27837]
[1744387615300,1.27828,1565.5,1565.4,3.3622]
[1744387615595,1.6739,1565.5,1565.4,4.64056]
[1744387615797,8.7559574,1565.6,1565.5,1.27828]
[1744387616105,7.4777074,1565.6,1565.5,2.96678]
[1744387616306,7.4777074,1565.6,1565.5,6.17458]
[1744387616505,7.4777074,1565.6,1565.5,11.17458]
[1744387617103,7.4777074,1565.6,1565.5,51.97458]
[1744387618304,7.4777074,1565.6,1565.5,46.97458]
[1744387618608,8.7559074,1565.6,1565.5,42.4885]
[1744387618803,8.7559074,1565.6,1565.5,43.76678]
[1744387619107,10.3623074,1565.6,1565.5,42.4885]
[1744387619307,10.3623074,1565.6,1565.5,40.8]
[1744387619510,1.27828,1565.5,1565.4,2.952]
[1744387619802,2.88468,1565.5,1565.4,4.5669]
[1744387620010,1.6064,1565.5,1565.4,4.5669]
[1744387620204,2.88468,1565.5,1565.4,1.6737]
[1744387620406,1.6064,1565.5,1565.4,2.95206]
[1744387620616,1.6064,1565.5,1565.4,4.56696]
[1744387621006,2.88468,1565.5,1565.4,4.56696]
[1744387621208,2.88468,1565.5,1565.4,1.6737]
[1744387621514,1.27826,1565.6,1565.5,1.27828]
[1744387621711,1.27824,1565.6,1565.5,1.27822]
[1744387621911,1.27824,1565.6,1565.5,2.86612]
[1744387622312,1.6596,1565.7,1565.6,1.2782]
[1744387622514,2.93772,1565.7,1565.6,2.8661]
[1744387622804,1.6596,1565.7,1565.6,2.8661]
[1744387623005,8.7557274,1565.9,1565.8,1.27804]
[1744387623205,1.27804,1565.8,1565.7,3.70946]
[1744387623410,2.93764,1565.8,1565.7,3.70946]
[1744387623813,7.4777074,1565.9,1565.8,1.27804]
[1744387624111,7.4777074,1565.9,1565.8,3.77144]
[1744387624507,7.4777074,1565.9,1565.8,8.77144]
[1744387625414,6.16975955,1565.9,1565.8,8.77144]
[1744387625610,9.94137949,1566.0,1565.9,1.27796]
[1744387625814,8.41082949,1566.0,1565.9,6.72703187]
[1744387626018,8.41082949,1566.0,1565.9,11.72703187]
[1744387626310,0.78924949,1566.0,1565.9,11.72703187]
[1744387626515,12.50594458,1566.1,1566.0,1.27787]
[1744387626820,2.94787,1566.5,1566.4,1.27755]
[1744387627019,2.94787,1566.5,1566.4,8.2498]
[1744387627214,2.94787,1566.5,1566.4,49.0498]
[1744387627817,2.94787,1566.5,1566.4,50.32735]
[1744387628019,10.00618663,1566.6,1566.5,1.27747]
[1744387628215,11.28361663,1566.6,1566.4,44.0078]
[1744387628415,1.6192,1566.5,1566.4,50.32731]
[1744387628715,10.00618663,1566.6,1566.5,1.27747]
[1744387629416,12.90277663,1566.6,1566.5,1.27747]
[1744387629623,12.90277663,1566.6,1566.4,44.0078]
[1744387629624,1.27747,1566.5,1566.4,44.0078]
[1744387629922,1.27755,1566.4,1566.3,5.05059785]
[1744387630124,1.6192,1566.5,1566.4,1.27755]
[1744387630414,1.6192,1566.5,1566.4,45.28535]
[1744387630807,1.6192,1566.5,1566.3,0.00959785]
[1744387631012,1.27755,1566.4,1566.3,0.00959785]
[1744387631713,1.27787,1566.0,1565.9,1.27796]
[1744387631912,1.27796,1565.9,1565.8,9.90866671]
[1744387634624,1.27796,1565.9,1565.8,11.18670671]
[1744387634824,1.27796,1565.9,1565.8,9.90866671]
[1744387635122,1.27796,1565.9,1565.8,11.18663671]
[1744387635327,3.02772,1566.0,1565.9,1.27796]
[1744387635623,1.27792,1566.0,1565.9,1.27796]
[1744387636020,1.27798,1565.9,1565.8,1.27799]
[1744387636819,1.27804,1565.8,1565.7,0.00959785]
[1744387637621,1.2784,1565.4,1565.2,3.2078]
[1744387637816,1.27845,1565.3,1565.2,9.52725]
[1744387638019,3.1961,1565.4,1565.0,3.2078]
[1744387638216,3.1965,1565.2,1564.8,3.2078]
[1744387638426,3.1965,1565.2,1564.7,30.46156678]
[1744387638427,1.27885,1564.8,1564.7,26.05058678]
[1744387638728,1.27885,1564.8,1564.7,24.75864661]
[1744387639115,1.27885,1564.8,1564.7,9.89564654]
[1744387640028,6.27885,1564.8,1564.7,9.89564654]
[1744387640325,6.27885,1564.8,1564.7,7.25964654]
[1744387641126,7.17715,1564.8,1564.7,7.25964654]
[1744387641628,7.17715,1564.8,1564.7,4.25262654]
[1744387641930,1.27894,1564.7,1564.6,5.99646446]
[1744387642121,1.27902,1564.6,1564.5,19.81733343]
[1744387642321,6.32102,1564.6,1564.5,17.77080343]
[1744387642522,11.32102,1564.6,1564.5,13.57922343]
[1744387643228,11.32102,1564.6,1564.5,12.22999343]
[1744387643930,1.2791,1564.5,1564.4,0.00959785]
[1744387644131,4.4869,1564.5,1564.4,0.00959785]
[1744387645332,5.3795,1564.5,1564.4,0.00959785]
[1744387646427,4.4869,1564.5,1564.4,0.00959785]
[1744387646638,1.2791,1564.5,1564.4,2.95464785]
[1744387647138,10.0035,1564.8,1564.4,13.08115785]
[1744387647330,0.8534,1564.8,1564.7,1.27894]
[1744387647523,1.27885,1564.8,1564.7,1.27894]
[1744387647928,1.27885,1564.8,1564.7,2.94484]
[1744387648427,4.98332173,1564.9,1564.7,1.6659]
[1744387648733,6.24911156,1564.9,1564.8,1.27885]
[1744387648932,4.97030156,1564.9,1564.7,1.6659]
[1744387649132,1.27885,1564.8,1564.7,2.94478]
[1744387649324,1.27885,1564.8,1564.7,2.93175983]
[1744387649631,1.27894,1564.7,1564.6,1.27901]
[1744387650234,1.27894,1564.7,1564.4,4.98019785]
[1744387650431,1.27894,1564.7,1564.6,1.27902]
[1744387650735,1.27902,1564.6,1564.5,1.27902]
[1744387650930,1.2791,1564.5,1564.4,6.25935785]
[1744387651126,1.2791,1564.5,1564.4,0.00959785]
[1744387651631,1.2791,1564.5,1564.4,1.28877785]
[1744387651832,1.2791,1564.5,1564.4,0.00959785]
[1744387652331,2.8705,1564.5,1564.4,0.00959785]
[1744387654235,7.8705,1564.5,1564.4,0.00959785]
[1744387656742,1.27966,1563.9,1563.8,1.27965]
[1744387656933,1.27967,1563.8,1563.7,1.726]
[1744387657233,3.19885,1564.0,1563.8,1.27967]
[1744387657234,2.6472,1564.0,1563.8,1.27967]
[1744387657538,7.13457,1564.0,1563.9,1.27959]
[1744387657740,1.27963,1563.9,1563.8,1.28920785]
[1744387658037,1.5902,1563.9,1563.8,1.28920785]
[1744387658733,9.53582785,1564.1,1564.0,1.27951]
[1744387658929,6.32802785,1564.1,1564.0,1.27951]
[1744387659330,7.91822785,1564.1,1564.0,1.27951]
[1744387659928,1.27951,1564.0,1563.9,1.7358]
[1744387660128,1.27959,1563.9,1563.8,1.28920785]
[1744387660328,1.27959,1563.9,1563.8,0.00959785]
[1744387660740,2.86979,1563.9,1563.8,0.00959785]
[1744387661132,2.86979,1563.9,1563.8,1.28926785]
[1744387661337,3.2078,1564.0,1563.9,1.27959]
[1744387661639,3.2078,1564.0,1563.9,3.03639]
[1744387661838,4.48731,1564.0,1563.9,3.03639]
[1744387662235,8.00059785,1564.1,1564.0,1.27951]
[1744387662535,8.00059785,1564.1,1564.0,3.03631]
[1744387662735,6.32809785,1564.1,1564.0,3.03631]
[1744387663939,5.04859785,1564.1,1564.0,3.03631]
[1744387664439,6.32802785,1564.1,1564.0,3.03631]
[1744387665730,7.99882785,1564.1,1564.0,3.03631]
[1744387666035,6.32802785,1564.1,1564.0,3.03631]
[1744387666230,5.04859785,1564.1,1564.0,3.03631]
[1744387666435,0.00959785,1564.1,1564.0,3.03631]
[1744387666935,0.00959785,1564.1,1564.0,8.03631]
[1744387671245,0.00959785,1564.1,1564.0,3.03631]
[1744387677145,1.27923,1564.4,1564.3,1.27921]
[1744387677338,1.27935,1564.2,1564.1,2.86175]
[1744387677542,1.27935,1564.2,1564.1,2.86183]
[1744387677847,1.27935,1564.2,1564.1,1.5824]
[1744387678043,1.27943,1564.1,1564.0,1.27944]
[1744387678251,1.27959,1563.9,1563.8,2.16001785]
[1744387678442,1.27956,1564.0,1563.9,1.27954]
[1744387678843,2.92899,1564.1,1564.0,1.27951]
[1744387679044,1.27951,1564.0,1563.9,2.86193]
[1744387679243,2.95961,1564.0,1563.9,2.86193]
[1744387682456,1.27959,1563.9,1563.8,0.00959785]
[1744387682655,6.18729,1563.9,1563.8,0.00959785]
[1744387682850,11.18729,1563.9,1563.8,0.00959785]
[1744387684143,6.18729,1563.9,1563.8,0.00959785]
[1744387684357,2.97949,1563.9,1563.8,0.00959785]
[1744387684556,2.97949,1563.9,1563.8,1.28926785]
[1744387684856,2.97949,1563.9,1563.8,0.00959785]
[1744387685050,7.97949,1563.9,1563.8,0.00959785]
[1744387685255,3.19962,1563.6,1563.3,0.9281]
[1744387685456,6.40742,1563.6,1563.1,2.19988]
[1744387685656,1.28015,1563.3,1563.2,3.01025]
[1744387685855,1.28015,1563.3,1563.2,1.7301]
[1744387686055,1.28033,1563.0,1562.9,20.92873838]
[1744387686258,1.28033,1563.0,1562.9,19.64836838]
[1744387686259,9.52213,1563.0,1562.9,19.64836838]
[1744387686455,14.52213,1563.0,1562.9,19.64836838]
[1744387686861,16.16953,1563.0,1562.9,19.64836838]
[1744387687263,16.16953,1563.0,1562.9,17.99626838]
[1744387687471,11.16953,1563.0,1562.9,17.99626838]
[1744387687660,8.82033,1563.0,1562.9,17.99626838]
[1744387687860,12.02813,1563.0,1562.9,17.99626838]
[1744387689169,1.28041,1562.9,1562.8,0.00959785]
[1744387689358,1.5948,1562.9,1562.8,1.29008785]
[1744387690663,8.80314211,1563.1,1562.9,1.28041]
[1744387690862,10.39794211,1563.1,1563.0,1.5981]
[1744387691663,1.28041,1562.9,1562.8,0.00959785]
[1744387691863,6.31641,1562.9,1562.8,0.00959785]
[1744387692064,11.31641,1562.9,1562.8,7.86e-06]
[1744387692373,8.05511,1562.9,1562.8,7.86e-06]
[1744387692872,6.7747,1562.9,1562.8,1.28049786]
[1744387693269,1.7387,1562.9,1562.8,1.28049786]
[1744387693464,1.28985785,1563.1,1562.9,1.28034]
[1744387693672,1.74829785,1563.1,1562.9,1.6385]
[1744387693975,1.74829785,1563.1,1563.0,1.28033]
[1744387694275,3.02854785,1563.1,1562.9,2.91885]
[1744387694467,0.00959785,1563.1,1563.0,1.28033]
[1744387694771,0.00959785,1563.1,1563.0,2.99053]
[1744387695273,1.28989785,1563.1,1562.9,1.28038]
[1744387695474,2.91369785,1563.1,1562.9,1.28038]
[1744387695675,1.63339785,1563.1,1563.0,1.28033]
[1744387696064,2.91371785,1563.1,1562.9,1.28036]
[1744387696474,1.63339785,1563.1,1563.0,2.99053]
[1744387696674,0.00959785,1563.1,1563.0,2.99053]
[1744387697468,1.28984785,1563.1,1563.0,2.99053]
[1744387697668,2.88354785,1563.1,1563.0,2.99053]
[1744387697864,0.00959785,1563.1,1563.0,2.99053]
[1744387698066,0.00959785,1563.1,1563.0,7.99053]
[1744387698369,0.00959785,1563.1,1563.0,2.99053]
[1744387698567,0.00959785,1563.1,1563.0,7.99053]
[1744387701570,1.28984785,1563.1,1563.0,1.7102]
[1744387701775,0.00959785,1563.1,1563.0,2.99053]